fUST/lending_fUST_20250623
["ID","MTS","AMOUNT","RATE_DAILY","PERIOD"]
[367142015,1750668900137,210.139205,0.00022191,7]
[367142016,1750668900180,708.949042,0.00022,7]
[367142017,1750668900220,210.139205,0.00022191,7]
[367142018,1750668900273,708.949042,0.00022,7]
[367142019,1750668900316,210.139205,0.00022465,7]
[367142020,1750668900361,210.139205,0.00022465,7]
[367142021,1750668900407,708.949042,0.00022191,7]
[367142022,1750668900442,210.139213,0.00022465,7]
[367142023,1750668900483,708.949042,0.00022191,7]
[367142024,1750668900520,708.949042,0.00022191,7]
[367142025,1750668900556,708.949042,0.00022191,7]
[367142026,1750668900596,708.949042,0.00021917,2]
[367142027,1750668900642,708.949042,0.0002199,7]
[367142028,1750668900686,708.949042,0.00022,7]
[367142029,1750668900726,708.949042,0.00022,7]
[367142030,1750668900765,708.949042,0.00022,7]
[367142031,1750668900804,460.0,0.00021917,2]
[367142032,1750668900842,708.949042,0.00022,7]
[367142033,1750668900879,460.0,0.00022191,2]
[367142034,1750668900915,708.949042,0.00022191,7]
[367142035,1750668901040,708.949042,0.00022191,7]
[367142036,1750668901077,461.66943298,0.00021917,2]
[367142037,1750668901115,708.949042,0.00022191,7]
[367142038,1750668901186,708.949034,0.00022191,7]
[367142039,1750668901319,460.0,0.00021917,2]
[367142040,1750668901440,460.0,0.00021917,2]
[367142041,1750668901480,460.0,0.00021917,2]
[367142042,1750668901518,574.38350687,0.00022191,2]
[367142043,1750668901636,460.0,0.00021917,2]
[367142044,1750668901751,460.0,0.00021917,2]
[367142045,1750668901789,547.35168835,0.00022191,2]
[367142046,1750668902662,-460.0,0.00021917,2]
[367142047,1750668902700,-481.29,0.00021917,2]
[367142048,1750668902738,-460.0,0.00021917,2]
[367142049,1750668902776,-460.0,0.00021917,2]
[367142050,1750668902813,-460.0,0.00021917,2]
[367142051,1750668902851,-500.0,0.00021917,2]
[367142052,1750668902887,-460.0,0.00022191,2]
[367142053,1750668902924,-236.4,0.00022191,2]
[367142054,1750668902958,-306.39,0.00022191,2]
[367142055,1750668902993,-177.48579441,0.00022913,2]
[367142056,1750668903030,-12553.69357174,0.00023,3]
[367142057,1750668903078,-175.14,0.00023003,10]
[367142058,1750668903125,-3000.0,0.0002301,2]
[367142059,1750668903173,-460.0,0.00023013,2]
[367142060,1750668903220,-530.23,0.00023013,2]
[367142061,1750668903269,-534.11,0.00023013,2]
[367142062,1750668903310,-460.0,0.00023013,2]
[367142063,1750668903353,-460.0,0.00023013,2]
[367142064,1750668903395,-460.0,0.00023013,2]
[367142065,1750668903436,-497.65,0.00023013,2]
[367142066,1750668903482,-572.79,0.00023013,2]
[367142067,1750668903530,-465.92982311,0.00023013,2]
[367142068,1750668903573,-460.0,0.00023013,2]
[367142069,1750668903613,-460.0,0.00023013,2]
[367142070,1750668903654,-460.0,0.00023013,2]
[367142071,1750668903695,-460.0,0.00023013,2]
[367142072,1750668903734,-460.0,0.00023013,2]
[367142073,1750668903774,-460.0,0.00023013,2]
[367142074,1750668903817,-460.0,0.00023013,2]
[367142075,1750668903860,-921.68,0.00023013,2]
[367142076,1750668903904,-460.0,0.00023013,2]
[367142077,1750668903946,-460.0,0.00023013,2]
[367142078,1750668903989,-731.54,0.00023013,2]
[367142079,1750668904032,-460.0,0.00023013,2]
[367142080,1750668904077,-460.0,0.00023013,2]
[367142081,1750668904119,-460.0,0.00023013,2]
[367142082,1750668904162,-460.0,0.00023013,2]
[367142083,1750668904214,-155.74958061,0.00023013,2]
[367142084,1750668904266,-492.05,0.00023013,2]
[367142085,1750668904311,-761.39,0.00023013,2]
[367142086,1750668904355,-761.39,0.00023013,2]
[367142087,1750668904399,-460.0,0.00023013,2]
[367142088,1750668904443,-460.0,0.00023013,2]
[367142089,1750668904489,-460.0,0.00023013,2]
[367142090,1750668904543,-460.0,0.00023013,2]
[367142091,1750668904607,-593.13,0.00023013,2]
[367142092,1750668904678,-848.27,0.00023013,2]
[367142093,1750668904728,-492.98,0.00023013,2]
[367142094,1750668904798,-460.0,0.00023013,2]
[367142095,1750668904860,-934.42,0.00023013,2]
[367142096,1750668904904,-460.0,0.00023013,2]
[367142097,1750668904945,-460.0,0.00023013,2]
[367142098,1750668904988,-695.7,0.00023013,2]
[367142099,1750668905034,-460.0,0.00023013,2]
[367142100,1750668905075,-460.0,0.00023013,2]
[367142101,1750668905117,-708.57,0.00023013,2]
[367142102,1750668905159,-460.0,0.00023013,2]
[367142103,1750668905199,-460.0,0.00023013,2]
[367142104,1750668905240,-460.0,0.00023013,2]
[367142105,1750668905281,-460.0,0.00023013,2]
[367142106,1750668905324,-460.0,0.00023013,2]
[367142107,1750668905366,-460.0,0.00023013,2]
[367142108,1750668905407,-460.0,0.00023013,2]
[367142109,1750668905446,-460.0,0.00023013,2]
[367142110,1750668905486,-460.0,0.00023013,2]
[367142111,1750668905531,-460.0,0.00023013,2]
[367142112,1750668905572,-460.0,0.00023013,2]
[367142113,1750668905614,-460.0,0.00023013,2]
[367142114,1750668905655,-460.0,0.00023013,2]
[367142115,1750668905700,-460.0,0.00023013,2]
[367142116,1750668905742,-460.0,0.00023013,2]
[367142117,1750668905781,-508.35850453,0.00023013,2]
[367142118,1750668905821,-460.0,0.00023013,2]
[367142119,1750668905867,-539.04,0.00023013,2]
[367142120,1750668905910,-460.0,0.00023013,2]
[367142121,1750668905949,-460.0,0.00023013,2]
[367142122,1750668905988,-400.12510423,0.00023013,2]
[367142123,1750668906029,-544.8,0.00023013,2]
[367142124,1750668906068,-460.0,0.00023013,2]
[367142125,1750668906106,-572.94,0.00023013,2]
[367142126,1750668906142,-460.0,0.00023013,2]
[367142127,1750668906178,-460.0,0.00023013,2]
[367142128,1750668906216,-1054.25,0.00023013,2]
[367142129,1750668906251,-460.0,0.00023013,2]
[367142130,1750668906289,-460.0,0.00023013,2]
[367142131,1750668906326,-460.0,0.00023013,2]
[367142132,1750668906367,-460.0,0.00023013,2]
[367142133,1750668906409,-598.98,0.00023013,2]
[367142134,1750668906598,-460.0,0.00023013,2]
[367142135,1750668906638,-860.41,0.00023013,2]
[367142136,1750668906682,-551.12,0.00023013,2]
[367142137,1750668906723,-243.03197924,0.00023013,2]
[367142138,1750668906765,-460.0,0.00023013,2]
[367142139,1750668906804,-460.0,0.00023013,2]
[367142140,1750668906843,-490.6203728,0.00023013,2]
[367142141,1750668906884,-460.0,0.00023013,2]
[367142142,1750668906935,-460.0,0.00023013,2]
[367142143,1750668906987,-460.0,0.00023013,2]
[367142144,1750668907037,-497.56,0.00023013,2]
[367142145,1750668907098,-322.78290718,0.00023013,2]
[367142146,1750668907153,-460.0,0.00023013,2]
[367142147,1750668907192,-460.0,0.00023013,2]
[367142148,1750668907251,-1851.05,0.00023013,2]
[367142149,1750668907306,-460.0,0.00023013,2]
[367142150,1750668907347,-902.17,0.00023013,2]
[367142151,1750668907387,-797.37,0.00023013,2]
[367142152,1750668907428,-460.0,0.00023013,2]
[367142153,1750668907468,-460.0,0.00023013,2]
[367142154,1750668907514,-460.0,0.00023013,2]
[367142155,1750668907555,-460.0,0.00023013,2]
[367142156,1750668907596,-1225.47,0.00023013,2]
[367142157,1750668907653,-373.70892553,0.00023013,2]
[367142158,1750668907702,-460.0,0.00023013,2]
[367142159,1750668907751,-460.0,0.00023013,2]
[367142160,1750668907798,-460.0,0.00023013,2]
[367142161,1750668907855,-460.0,0.00023013,2]
[367142162,1750668907916,-460.0,0.00023013,2]
[367142163,1750668907957,-460.0,0.00023013,2]
[367142164,1750668907997,-460.0,0.00023013,2]
[367142165,1750668908036,-460.0,0.00023013,2]
[367142166,1750668908074,-460.0,0.00023013,2]
[367142167,1750668908113,-460.0,0.00023013,2]
[367142168,1750668908152,-460.0,0.00023013,2]
[367142169,1750668908190,-777.6,0.00023013,2]
[367142170,1750668908230,-460.0,0.00023013,2]
[367142171,1750668908283,-851.87,0.00023013,2]
[367142172,1750668908327,-460.0,0.00023013,2]
[367142173,1750668908368,-511.17,0.00023013,2]
[367142174,1750668908409,-516.66,0.00023013,2]
[367142175,1750668908451,-460.0,0.00023013,2]
[367142176,1750668908492,-2232.98,0.00023013,2]
[367142177,1750668908532,-532.41,0.00023013,2]
[367142178,1750668908571,-460.0,0.00023013,2]
[367142179,1750668908613,-805.5,0.00023013,2]
[367142180,1750668908656,-469.39,0.00023013,2]
[367142181,1750668908701,-460.0,0.00023013,2]
[367142182,1750668908744,-460.0,0.00023013,2]
[367142183,1750668908787,-1090.19,0.00023013,2]
[367142184,1750668908832,-652.16,0.00023013,2]
[367142185,1750668908877,-475.03,0.00023013,2]
[367142186,1750668908921,-460.0,0.00023013,2]
[367142187,1750668908962,-460.0,0.00023013,2]
[367142188,1750668909004,-460.0,0.00023013,2]
[367142189,1750668909045,-1219.76,0.00023013,2]
[367142190,1750668909087,-481.60211631,0.00023013,2]
[367142191,1750668909137,-460.0,0.00023013,2]
[367142192,1750668909178,-460.0,0.00023013,2]
[367142193,1750668909220,-460.0,0.00023013,2]
[367142194,1750668909262,-1079.84,0.00023013,2]
[367142195,1750668909302,-460.0,0.00023013,2]
[367142196,1750668909345,-460.0,0.00023013,2]
[367142197,1750668909386,-460.0,0.00023013,2]
[367142198,1750668909435,-460.0,0.00023013,2]
[367142199,1750668909478,-460.0,0.00023013,2]
[367142200,1750668909522,-500.0,0.00023013,2]
[367142201,1750668909564,-475.18,0.00023013,2]
[367142202,1750668909608,-460.0,0.00023013,2]
[367142203,1750668909652,-460.0,0.00023013,2]
[367142204,1750668909700,-1001.9,0.00023013,2]
[367142205,1750668909750,-460.0,0.00023013,2]
[367142206,1750668909796,-838.24,0.00023013,2]
[367142207,1750668909839,-460.0,0.00023013,2]
[367142208,1750668909880,-460.0,0.00023013,2]
[367142209,1750668909923,-7926.46,0.00023013,2]
[367142210,1750668909966,-460.0,0.00023013,2]
[367142211,1750668910010,-617.18,0.00023013,2]
[367142212,1750668910052,-460.0,0.00023013,2]
[367142213,1750668910094,-1790.07,0.00023013,2]
[367142214,1750668910136,-460.0,0.00023013,2]
[367142215,1750668910177,-400.77370623,0.00023013,2]
[367142216,1750668910217,-460.0,0.00023013,2]
[367142217,1750668910258,-845.01,0.00023013,2]
[367142218,1750668910297,-502.73,0.00023013,2]
[367142219,1750668910336,-452.90431415,0.00023013,2]
[367142220,1750668910375,-500.0,0.00023013,2]
[367142221,1750668910415,-1133.22,0.00023013,2]
[367142222,1750668910455,-571.37744419,0.00023013,2]
[367142223,1750668910500,-500.2,0.00023013,2]
[367142224,1750668910539,-479.55,0.00023013,2]
[367142225,1750668910584,-460.0,0.00023013,2]
[367142226,1750668910627,-1811.04,0.00023013,2]
[367142227,1750668910679,-958.78,0.00023013,2]
[367142228,1750668910914,-580.82992214,0.00023013,2]
[367142229,1750668910956,-881.51,0.00023013,2]
[367142230,1750668910997,-460.0,0.00023013,2]
[367142231,1750668911038,-625.94,0.00023013,2]
[367142232,1750668911078,-1036.85,0.00023013,2]
[367142233,1750668911146,-460.0,0.00023013,2]
[367142234,1750668911187,-460.0,0.00023013,2]
[367142235,1750668911231,-855.07,0.00023013,2]
[367142236,1750668911270,-1527.02,0.00023013,2]
[367142237,1750668911311,-1371.96,0.00023013,2]
[367142238,1750668911350,-460.0,0.00023013,2]
[367142239,1750668911391,-460.0,0.00023013,2]
[367142240,1750668911432,-2239.41,0.00023013,2]
[367142241,1750668911474,-460.0,0.00023013,2]
[367142242,1750668911514,-460.0,0.00023013,2]
[367142243,1750668911582,-710.47,0.00023013,2]
[367142244,1750668911625,-550.58,0.00023013,2]
[367142245,1750668911666,-460.0,0.00023013,2]
[367142246,1750668911707,-460.0,0.00023013,2]
[367142247,1750668911760,-460.0,0.00023013,2]
[367142248,1750668911805,-1440.61,0.00023013,2]
[367142249,1750668911849,-1141.15,0.00023013,2]
[367142250,1750668911892,-460.0,0.00023013,2]
[367142251,1750668911936,-477.01,0.00023013,2]
[367142252,1750668911985,-2095.51,0.00023013,2]
[367142253,1750668912031,-649.72,0.00023013,2]
[367142254,1750668912073,-460.0,0.00023013,2]
[367142255,1750668912116,-764.68,0.00023013,2]
[367142256,1750668912156,-460.0,0.00023013,2]
[367142257,1750668912196,-1044.6,0.00023013,2]
[367142258,1750668912235,-460.0,0.00023013,2]
[367142259,1750668912273,-460.0,0.00023013,2]
[367142260,1750668912312,-460.0,0.00023013,2]
[367142261,1750668912354,-462.26954565,0.00023013,2]
[367142262,1750668912397,-748.53,0.00023013,2]
[367142263,1750668912455,-460.0,0.00023013,2]
[367142264,1750668912511,-477.99,0.00023013,2]
[367142265,1750668912591,-500.0,0.00023013,2]
[367142266,1750668912634,-837.85,0.00023013,2]
[367142267,1750668912678,-460.0,0.00023013,2]
[367142268,1750668912723,-469.14379371,0.00023013,2]
[367142269,1750668912768,-602.47,0.00023013,2]
[367142270,1750668912811,-460.0,0.00023013,2]
[367142271,1750668912856,-460.0,0.00023013,2]
[367142272,1750668912904,-500.0,0.00023013,2]
[367142273,1750668912947,-472.30790771,0.00023013,2]
[367142274,1750668912993,-415.32524298,0.00023013,2]
[367142275,1750668913035,-1600.69,0.00023013,2]
[367142276,1750668913076,-460.0,0.00023013,2]
[367142277,1750668913116,-1892.11,0.00023013,2]
[367142278,1750668913157,-460.0,0.00023013,2]
[367142279,1750668913199,-460.0,0.00023013,2]
[367142280,1750668913240,-460.0,0.00023013,2]
[367142281,1750668913281,-1897.26,0.00023013,2]
[367142282,1750668913322,-1282.26,0.00023013,2]
[367142283,1750668913362,-475.37,0.00023013,2]
[367142284,1750668913403,-505.8,0.00023013,2]
[367142285,1750668913443,-460.0,0.00023013,2]
[367142286,1750668913486,-505.2,0.00023013,2]
[367142287,1750668913528,-460.0,0.00023013,2]
[367142288,1750668913569,-460.0,0.00023013,2]
[367142289,1750668913611,-460.0,0.00023013,2]
[367142290,1750668913652,-460.0,0.00023013,2]
[367142291,1750668913694,-1054.32,0.00023013,2]
[367142292,1750668913737,-652.07,0.00023013,2]
[367142293,1750668913778,-460.0,0.00023013,2]
[367142294,1750668913824,-1231.09,0.00023013,2]
[367142295,1750668913864,-460.0,0.00023013,2]
[367142296,1750668913907,-460.0,0.00023013,2]
[367142297,1750668913950,-460.0,0.00023013,2]
[367142298,1750668913990,-750.52,0.00023013,2]
[367142299,1750668914032,-814.26,0.00023013,2]
[367142300,1750668914072,-460.0,0.00023013,2]
[367142301,1750668914114,-460.0,0.00023013,2]
[367142302,1750668914155,-460.0,0.00023013,2]
[367142303,1750668914195,-1178.39,0.00023013,2]
[367142304,1750668914235,-460.0,0.00023013,2]
[367142305,1750668914274,-460.0,0.00023013,2]
[367142306,1750668914313,-460.0,0.00023013,2]
[367142307,1750668914352,-460.0,0.00023013,2]
[367142308,1750668914392,-460.0,0.00023013,2]
[367142309,1750668914432,-460.0,0.00023013,2]
[367142310,1750668914473,-963.76,0.00023013,2]
[367142311,1750668914515,-1651.31,0.00023013,2]
[367142312,1750668914556,-1168.55,0.00023013,2]
[367142313,1750668914597,-460.0,0.00023013,2]
[367142314,1750668914639,-810.72,0.00023013,2]
[367142315,1750668914681,-506.13,0.00023013,2]
[367142316,1750668914722,-460.0,0.00023013,2]
[367142317,1750668914763,-460.0,0.00023013,2]
[367142318,1750668914804,-575.26,0.00023013,2]
[367142319,1750668914847,-1312.86,0.00023013,2]
[367142320,1750668914889,-702.6953947,0.00023013,2]
[367142321,1750668915099,-584.29,0.00023013,2]
[367142322,1750668915140,-460.0,0.00023013,2]
[367142323,1750668915182,-824.55,0.00023013,2]
[367142324,1750668915221,-460.0,0.00023013,2]
[367142325,1750668915260,-1432.01,0.00023013,2]
[367142326,1750668915300,-541.43,0.00023013,2]
[367142327,1750668915341,-460.0,0.00023013,2]
[367142328,1750668915381,-460.0,0.00023013,2]
[367142329,1750668915421,-1134.45,0.00023013,2]
[367142330,1750668915460,-1318.97,0.00023013,2]
[367142331,1750668915500,-162.92620333,0.00023013,2]
[367142332,1750668915538,-460.0,0.00023013,2]
[367142333,1750668915576,-460.0,0.00023013,2]
[367142334,1750668915617,-460.0,0.00023013,2]
[367142335,1750668915659,-1160.72,0.00023013,2]
[367142336,1750668915702,-8624.4,0.00023013,2]
[367142337,1750668915743,-530.06,0.00023013,2]
[367142338,1750668915783,-460.0,0.00023013,2]
[367142339,1750668915825,-460.0,0.00023013,2]
[367142340,1750668915866,-727.12,0.00023013,2]
[367142341,1750668915904,-600.2820739,0.00023013,2]
[367142342,1750668915945,-460.0,0.00023013,2]
[367142343,1750668915984,-672.09,0.00023013,2]
[367142344,1750668916024,-3057.12,0.00023013,2]
[367142345,1750668916066,-460.91491073,0.00023013,2]
[367142346,1750668916107,-460.0,0.00023013,2]
[367142347,1750668916149,-460.0,0.00023013,2]
[367142348,1750668916189,-3812.56,0.00023013,2]
[367142349,1750668916229,-460.0,0.00023013,2]
[367142350,1750668916269,-460.0,0.00023013,2]
[367142351,1750668916308,-460.0,0.00023013,2]
[367142352,1750668916347,-460.0,0.00023013,2]
[367142353,1750668916385,-460.0,0.00023013,2]
[367142354,1750668916424,-627.42,0.00023013,2]
[367142355,1750668916463,-460.0,0.00023013,2]
[367142356,1750668916502,-610.84,0.00023013,2]
[367142357,1750668916545,-796.2,0.00023013,2]
[367142358,1750668916585,-499.96,0.00023013,2]
[367142359,1750668916626,-2473.62,0.00023013,2]
[367142360,1750668916667,-460.0,0.00023013,2]
[367142361,1750668916708,-460.0,0.00023013,2]
[367142362,1750668916751,-1430.76,0.00023013,2]
[367142363,1750668916791,-892.93,0.00023013,2]
[367142364,1750668916831,-460.0,0.00023013,2]
[367142365,1750668916873,-478.89,0.00023013,2]
[367142366,1750668916916,-460.0,0.00023013,2]
[367142367,1750668916957,-5393.99,0.00023013,2]
[367142368,1750668916999,-460.0,0.00023013,2]
[367142369,1750668917040,-513.71,0.00023013,2]
[367142370,1750668917079,-460.0,0.00023013,2]
[367142371,1750668917116,-460.0,0.00023013,2]
[367142372,1750668917157,-460.0,0.00023013,2]
[367142373,1750668917196,-1427.01,0.00023013,2]
[367142374,1750668917234,-1585.98,0.00023013,2]
[367142375,1750668917274,-460.0,0.00023013,2]
[367142376,1750668917311,-460.0,0.00023013,2]
[367142377,1750668917351,-460.0,0.00023013,2]
[367142378,1750668917390,-492.34,0.00023013,2]
[367142379,1750668917431,-3023.47,0.00023013,2]
[367142380,1750668917477,-473.34,0.00023013,2]
[367142381,1750668917517,-460.0,0.00023013,2]
[367142382,1750668917556,-658.2,0.00023013,2]
[367142383,1750668917597,-2438.96,0.00023013,2]
[367142384,1750668917638,-624.12,0.00023013,2]
[367142385,1750668917679,-1488.85,0.00023013,2]
[367142386,1750668917725,-21969.91,0.00023013,2]
[367142387,1750668917767,-5032.78,0.00023013,2]
[367142388,1750668917810,-460.0,0.00023013,2]
[367142389,1750668917853,-2882.28,0.00023013,2]
[367142390,1750668917897,-460.0,0.00023013,2]
[367142391,1750668917939,-460.0,0.00023013,2]
[367142392,1750668917983,-460.0,0.00023013,2]
[367142393,1750668918026,-460.0,0.00023013,2]
[367142394,1750668918070,-2876.44,0.00023013,2]
[367142395,1750668918112,-460.0,0.00023013,2]
[367142396,1750668918155,-975.76,0.00023013,2]
[367142397,1750668918198,-460.0,0.00023013,2]
[367142398,1750668918239,-744.21,0.00023013,2]
[367142399,1750668918283,-460.0,0.00023013,2]
[367142400,1750668918324,-1205.15,0.00023013,2]
[367142401,1750668918366,-774.21,0.00023013,2]
[367142402,1750668918407,-1607.5,0.00023013,2]
[367142403,1750668918449,-1473.22,0.00023013,2]
[367142404,1750668918492,-460.0,0.00023013,2]
[367142405,1750668918534,-460.0,0.00023013,2]
[367142406,1750668918574,-460.0,0.00023013,2]
[367142407,1750668918615,-743.62,0.00023013,2]
[367142408,1750668918656,-1238.6,0.00023013,2]
[367142409,1750668918698,-2043.84,0.00023013,2]
[367142410,1750668918740,-460.0,0.00023013,2]
[367142411,1750668918784,-2730.66,0.00023013,2]
[367142412,1750668918826,-460.0,0.00023013,2]
[367142413,1750668918871,-5809.83,0.00023013,2]
[367142414,1750668918912,-460.0,0.00023013,2]
[367142415,1750668919106,-496.07,0.00023013,2]
[367142416,1750668919147,-3000.0,0.0002302,2]
[367142417,1750668919188,-768.65876723,0.00023021,2]
[367142418,1750668919228,-1000.0,0.00023021,2]
[367142419,1750668919273,-1000.0,0.00023021,2]
[367142420,1750668919315,-1000.0,0.00023021,2]
[367142421,1750668919357,-1000.0,0.00023021,2]
[367142422,1750668919398,-1000.0,0.00023021,2]
[367142423,1750668919438,-501.27842384,0.00023021,2]
[367142424,1750668919481,-1000.0,0.00023021,2]
[367142425,1750668919523,-3000.0,0.0002303,2]
[367142426,1750668919565,-3000.0,0.0002304,2]
[367142427,1750668919606,-3703.22297,0.0002305,2]
[367142428,1750668919652,-669.42703452,0.00023068,2]
[367142429,1750668919699,-1500.0,0.00023068,2]
[367142430,1750668919746,-500.0,0.00023068,2]
[367142431,1750668919789,-505.19550113,0.00023068,2]
[367142432,1750668919830,-1500.0,0.00023068,2]
[367142433,1750668919873,-428.01913389,0.00023068,2]
[367142434,1750668919915,-1500.0,0.00023068,2]
[367142435,1750668919956,-1500.0,0.00023068,2]
[367142436,1750668919997,-506.87976609,0.00023068,2]
[367142437,1750668920041,-500.83696696,0.00023073,2]
[367142438,1750668920081,-500.43831993,0.00023073,2]
[367142439,1750668920121,-500.0,0.00023073,2]
[367142440,1750668920157,-500.0,0.00023073,2]
[367142441,1750668920195,-500.0,0.00023073,2]
[367142442,1750668920236,-500.0,0.00023073,2]
[367142443,1750668920277,-600.0,0.00023073,2]
[367142444,1750668920316,-500.84923076,0.00023073,2]
[367142445,1750668920357,-3893.46,0.00023089,2]
[367142446,1750668920397,-9502.06,0.000231,7]
[367142447,1750668920438,-3742.46,0.000231,7]
[367142448,1750668920478,-12553.69357174,0.000231,7]
[367142449,1750668920773,300.0,0.00021916,2]
[367142450,1750668920832,460.0,0.00021917,2]
[367142451,1750668921011,500.0,0.00022773,2]
[367142452,1750668921097,500.0,0.00022473,2]
[367142453,1750668921142,1000.0,0.00023021,2]
[367142454,1750668921189,460.0,0.00021917,2]
[367142455,1750668921262,460.0,0.00022191,2]
[367142456,1750668921308,160.0,0.00023,3]
[367142457,1750668921365,875.7,0.00023003,10]
[367142458,1750668921410,501.39336344,0.00022773,2]
[367142459,1750668921455,327.8597219,0.00022773,2]
[367142460,1750668921499,150.0,0.00023073,2]
[367142461,1750668921548,501.03718614,0.00022773,2]
[367142462,1750668921593,478.71138157,0.00022473,2]
[367142463,1750668921641,500.0,0.00022473,2]
[367142464,1750668921701,501.01501,0.00022773,2]
[367142465,1750668921751,500.0,0.00022473,2]
[367142466,1750668921799,500.0,0.00022473,2]
[367142467,1750668921844,1000.0,0.00023021,2]
[367142468,1750668921898,500.0,0.00022773,2]
[367142469,1750668921955,500.0,0.00022773,2]
[367142470,1750668922003,500.0,0.00022773,2]
[367142471,1750668922073,500.88248353,0.00022773,2]
[367142472,1750668922122,501.31662438,0.00022473,2]
[367142473,1750668922167,503.97551977,0.00023021,2]
[367142474,1750668922257,500.0,0.00022773,2]
[367142475,1750668922318,500.0,0.00022773,2]
[367142476,1750668922374,460.0,0.00021917,2]
[367142477,1750668922433,1000.0,0.00023021,2]
[367142478,1750668922496,500.0,0.00022773,2]
[367142479,1750668922542,500.0,0.00022773,2]
[367142480,1750668922587,500.0,0.00022773,2]
[367142481,1750668922637,500.0,0.00022773,2]
[367142482,1750668922918,502.13307339,0.00022773,2]
[367142483,1750668923021,500.0,0.00022738,2]
[367142484,1750668923073,500.0,0.00022738,2]
[367142485,1750668923126,192.84143925,0.00022738,2]
[367142486,1750668923176,460.0,0.00022465,2]
[367142487,1750668923226,500.0,0.00022738,2]
[367142488,1750668923275,307.93750213,0.00022738,2]
[367142489,1750668923324,500.0,0.00022738,2]
[367142490,1750668923374,297.82184225,0.00023021,2]
[367142491,1750668923431,500.0,0.00022738,2]
[367142492,1750668923478,500.0,0.00022473,2]
[367142493,1750668923523,581.9702967,0.00022473,2]
[367142494,1750668923570,500.0,0.00022473,2]
[367142495,1750668923631,500.0,0.00022473,2]
[367142496,1750668923678,1000.0,0.00023021,2]
[367142497,1750668923723,500.0,0.00022773,2]
[367142498,1750668923776,1000.0,0.00023021,2]
[367142499,1750668923831,460.0,0.00022739,2]
[367142500,1750668923903,460.0,0.00021917,2]
[367142501,1750668923951,500.0,0.00022738,2]
[367142502,1750668924001,500.0,0.00022738,2]
[367142503,1750668924088,490.06,0.00023013,2]
[367142504,1750668924153,500.0,0.00022773,2]
[367142505,1750668924229,506.76058791,0.00022773,2]
[367142506,1750668924520,500.0,0.00022738,2]
[367142507,1750668924628,160.88171103,0.00022773,2]
[367142508,1750668924728,1200.0,0.00023012,2]
[367142509,1750668924815,231.651704,0.00022552,4]
[367142510,1750668924882,689.84237767,0.00022459,2]
[367142511,1750668924934,500.0,0.00022773,2]
[367142512,1750668924995,160.0,0.00023,3]
[367142513,1750668925054,207.4,0.00022459,2]
[367142514,1750668925108,460.0,0.00021917,2]